Cogmind - Beta 16 @@@ ROGUE MODE // 2025.12.06 @ 21:17:53 Player: Zonalar Result: Destroyed by S-10 Pest with Light Assault Rifle Performance ------------- Evolutions (0) 0 Regions Visited (2) 400 Robots Destroyed (28) 140 Value Destroyed (430) 430 Prototype IDs (2) 40 Alien Tech Used (0) 0 Bonus (0) 0 TOTAL SCORE: 1010 Bonus ------- None Cogmind --------- Core Integrity 0/250 Matter 275/300 Energy 125/125 System Corruption 1% Temperature Cool (0) Movement Rolling (130) Ox2 Location -10/Mines Parts ------- > --- POWER (1) -------- Light Ion Engine > --- PROPULSION (2) --- Carbon-fiber Leg Compact Wheel > --- UTILITY (2) ------ High-capacity Storage Unit Improved Power Shielding > --- WEAPON (2) ------- Heavy Flail > --- INVENTORY (20) --- Improved Heat Sink Medium Matter Pod (54) Sensor Array Signal Interpreter Improved Terrain Scanner Terrain Scan Processor Seismic Detector ECM Suite Heavy Armor Plating Hacking Suite Improved Trap Extractor (0/6) Datajack Mining Laser Peak State ------------ > --- POWER ------------ Light Nuclear Core > --- PROPULSION ------- Carbon-fiber Leg Compact Wheel > --- UTILITY ---------- Sensor Array Improved Trap Extractor > --- WEAPON ----------- Assault Rifle Heavy Flail > --- INVENTORY -------- Medium Matter Pod Heavy Armor Plating Hacking Suite Particle Gun [Rating: 17] Favorites ----------- Power Light Ion Engine Engine Light Ion Engine Power Core Light Nuclear Core Propulsion Light Treads Treads Light Treads Leg Carbon-fiber Leg Wheel Compact Wheel Utility Hacking Suite Device Seismic Detector Storage Large Storage Unit Hackware Hacking Suite Protection Improved Light Armor Plating Weapon Assault Rifle Energy Gun Medium Laser Ballistic Gun Assault Rifle Special Weapon Mining Laser Impact Weapon Heavy Flail Build | -11 -10 -10 ------- Run | Yrd Mat Min Slots Evolved . | . . . Power . | . . . Propulsion . | . . . Utility . | . . . Weapon . | . . . Parts Attached 31 | 11 11 9 Power 4 | 2 1 1 Engine 3 | 2 1 . Core 1 | . . 1 Reactor . | . . . Propulsion 10 | 4 3 3 Treads 5 | 2 3 . Leg 1 | . . 1 Wheel 4 | 2 . 2 Hover . | . . . Flight . | . . . Utility 9 | 2 3 4 Device 3 | 1 . 2 Storage 3 | 1 2 . Processor . | . . . Hackware 1 | . 1 . Protection 2 | . . 2 Artifact . | . . . Weapon 8 | 3 4 1 Energy Gun 3 | 1 2 . Energy Cannon . | . . . Ballistic Gun 2 | 2 . . Ballistic Cannon . | . . . Launcher . | . . . Special Weapon 2 | . 2 . Impact Weapon 1 | . . 1 Slashing Weapon . | . . . Piercing Weapon . | . . . Special Melee Weapon . | . . . Unidentified Prototypes . | . . . Parts Lost 6 | . . 6 Power . | . . . Propulsion 3 | . . 3 Utility 1 | . . 1 Weapon 2 | . . 2 Highest Loss Streak 3 | . . 3 To Critical Strikes . | . . . Average Backups 13 | 4 13 16 Power 1 | . 1 . Propulsion 2 | 2 2 1 Utility 8 | . 7 11 Weapon 2 | 1 2 2 Tool/Special . | . . . Unused Backups 16 | . 4 12 Power 1 | . 1 . Propulsion . | . . . Utility 13 | . 2 11 Weapon 1 | . 1 . Tool/Special 1 | . . 1 Average Slot Usage (%) 98 | . 99 96 Engine 13 | . 13 11 Treads 24 | . 28 16 Wheel 1 | . . 6 Device 4 | . 5 3 Storage 13 | . 14 13 Hackware 8 | . 8 8 Energy Gun 7 | . 6 9 Ballistic Gun 15 | . 19 5 Special Weapon 1 | . 1 . Impact Weapon 3 | . . 12 Peak Build Rating 17 | 7 12 17 Average Rating 10 | 5 9 13 On Entrance 6 | . 7 11 Avg Prop Armor Cover (%) 9 | . . 9 Naked Turns . | . . . Heaviest Build 53 | 15 47 53 Greatest Support 40 | 40 40 40 Greatest Overweight (x) 15 | . 1 15 Average Overweight (x) . | . . 1 Largest Inventory Capacity 20 | 8 20 20 Average Capacity 16 | 7 15 19 Most Carried 20 | 8 17 20 Average Carried 14 | 4 13 17 Final Capacity 20 | 8 20 20 Final Carried 16 | 7 16 14 Class Distribution -------------------- 100% | Mutant Dominant Class ---------------- Mutant | -10/Materials Mutant | -10/Mines Resources | -11 -10 -10 ----------- Run | Yrd Mat Min Matter Collected 1005 | 289 451 265 Remotely . | . . . Salvage Created 836 | 112 500 224 Parts 44 | 12 30 2 Haulers Intercepted . | . . . Recyclers Shooed 4 | 1 2 1 Parts Field Recycled . | . . . Retrieved Matter . | . . . Parts Self-Destructed . | . . . Prevented . | . . . Parts Restored . | . . . Kills | -11 -10 -10 ------- Run | Yrd Mat Min Combat Hostiles Destroyed 15 | . 9 6 Melee 2 | . . 2 Guns 10 | . 9 1 Classes Destroyed 8 | 2 5 1 Worker 1 | . . 1 Builder 1 | . 1 . Tunneler 2 | 2 . . Recycler 4 | 1 2 1 Operator 3 | . 3 . Watcher 2 | . 2 . Swarmer 10 | . 6 4 Grunt 5 | . 3 2 Best Kill Streak 4 | 1 4 2 Combat Bots Only 4 | . 4 2 Max Kills in Single Turn 2 | 1 2 1 Gunslinging 1 | . 1 . Exploded . | . . . Melee 1 | . . 1 Uniques/NPCs Destroyed . | . . . Combat | -11 -10 -10 -------- Run | Yrd Mat Min Hostile Shots Fired 156 | . 54 102 Missed 29 | . 12 17 Hits 127 | . 42 85 Projectile 127 | . 42 85 Critical Strikes 2 | . 1 1 Damage Taken 1290 | . 381 909 Core 251 | . 45 206 Absorbed by Shields . | . . . Redirected to Shielding 4 | . . 4 Core Remaining (%) 100 | 100 . . Volleys Fired 67 | 4 50 13 Largest 2 | 2 2 2 Hottest 115 | 40 115 115 Shots Fired 119 | 8 89 22 Gun 108 | 8 78 22 Cannon . | . . . Launcher . | . . . Special 11 | . 11 . Kinetic 83 | 8 69 6 Thermal 36 | . 20 16 Explosive . | . . . Electromagnetic . | . . . Robot Hit Streak 14 | 2 14 8 Robot Miss Streak 4 | 2 4 2 Penetration Max . | . . . Secondary Targets 1 | . 1 . Max Gunslinging Chain 1 | . 1 . Shots Hit Robots 76 | 4 46 26 Core Hits 27 | 3 21 3 Critical Kills 1 | . 1 . Critical Parts Destroyed 3 | . . 3 Critical Strikes 6 | . 2 4 Burn 2 | . 1 1 Destroy 1 | . 1 . Smash 3 | . . 3 Melee Attacks 31 | . . 31 Impact 31 | . . 31 Slashing . | . . . Piercing . | . . . Sneak Attacks 3 | . . 3 Combat Hostiles . | . . . Follow-up Attacks . | . . . Damage Inflicted 1438 | 51 610 777 Guns 884 | 51 610 223 Cannons . | . . . Explosions . | . . . Melee 554 | . . 554 Ramming . | . . . Kinetic 667 | 51 555 61 Thermal 217 | . 55 162 Explosive . | . . . Electromagnetic . | . . . Impact 554 | . . 554 Slashing . | . . . Piercing . | . . . Highest Corruption 1 | . 1 1 Average Corruption 1 | . 1 1 Corruption Purged . | . . . Corruption Blocked . | . . . Effects 10 | . 1 9 Message Errors 2 | . . 2 Matter Fused 2 | . . 2 Heat Flow Errors 3 | . . 3 Energy Discharges 1 | . . 1 Parts Rejected 1 | . 1 . Data Loss (major) 1 | . . 1 Overload Shots . | . . . Overflow Damage 250 | . . 250 Projectiles . | . . . Explosions . | . . . Melee 250 | . . 250 Knockbacks 4 | . . 4 Impact 4 | . . 4 Kinetic . | . . . Secondary . | . . . Self-Inflicted Damage . | . . . Shots . | . . . Rammed . | . . . Targets Rammed . | . . . Kicked . | . . . Crushed . | . . . Highest Temperature 565 | . 54 565 Average Temperature 159 | . 13 274 Received Heat Transfer 411 | . 84 327 Effects 11 | . . 11 Shutdowns 3 | . . 3 Energy Bleed 1 | . . 1 Interference 1 | . . 1 Matter Decay 1 | . . 1 Short Circuit 2 | . . 2 Damage (major) 3 | . . 3 Siege Activations . | . . . Martial Activations . | . . . Shielding Activations . | . . . Robots Disrupted . | . . . Combat Hostiles . | . . . Robots Corrupted 5 | . . 5 Combat Hostiles 3 | . . 3 Parts Fried 6 | . . 6 Impact Corruptions 11 | . . 11 Robots Melted . | . . . Combat Hostiles . | . . . Parts Melted . | . . . Heat Transferred 740 | . 222 518 Parts Sabotaged . | . . . Parts Stolen . | . . . Parts Stripped . | . . . Power Chain Reactions . | . . . Alert | -11 -10 -10 ------- Run | Yrd Mat Min Maximum Alert Level . | . . . Low Security (%) 100 | 100 100 100 Level 1 . | . . . Level 2 . | . . . Level 3 . | . . . Level 4 . | . . . Level 5 . | . . . High Security . | . . . Max Security . | . . . Peak Influence 100 | 5 100 79 Initial . | . . . Average 18 | . 18 22 Influence Increases 550 | 15 337 198 Destroy 0b10 Robot/C 300 | . 180 120 Destroy 0b10 Robot/NC 65 | 15 40 10 Destroy Leader 64 | . 44 20 Successful Hack 46 | . 46 . Disable Machine 15 | . 15 . Destroy Structure 15 | . 12 3 Lose Combat Pursuer 45 | . . 45 Influence Decreases 549 | 15 337 197 Time Decay 495 | 15 337 143 Lost Part 54 | . . 54 Squads Dispatched 1 | . 1 . Investigation . | . . . Extermination . | . . . Reinforcement 1 | . 1 . Assault . | . . . Garrison . | . . . Intercept . | . . . Searches Triggered . | . . . Construction Impeded . | . . . Haulers Reinforced . | . . . Active Scanning Responses . | . . . Cargo Convoy Interrupts . | . . . Stealth | -11 -10 -10 --------- Run | Yrd Mat Min Distress Signals 1 | . . 1 Communications Jammed . | . . . Distress Signals . | . . . Times Spotted 31 | . 22 9 Peak Tracking Total 3 | . 3 3 Tactical Retreats 2 | . . 2 Traps | -11 -10 -10 ------- Run | Yrd Mat Min Traps Triggered 1 | . 1 . Indirectly . | . . . Trap Hack Attempts . | . . . Triggered . | . . . Disarmed . | . . . Reprogrammed . | . . . Reused . | . . . Traps Extracted . | . . . Installed . | . . . Triggered . | . . . Machines | -11 -10 -10 ---------- Run | Yrd Mat Min Machines Disabled 1 | . 1 . Max in Single Turn 1 | . 1 . Machines Repaired . | . . . Machines Dismantled . | . . . Machines Sabotaged . | . . . Overloaded Fab Kills . | . . . Hacking | -11 -10 -10 --------- Run | Yrd Mat Min Machines Accessed 8 | . 7 1 Terminals 7 | . 7 . Fabricators . | . . . Repair Stations . | . . . Recycling Units . | . . . Scanalyzers . | . . . Garrison Access . | . . . Total Hacks 27 | . 26 1 Successful 20 | . 19 1 Failed 6 | . 6 . Catastrophic . | . . . Database Lockouts 1 | . 1 . Manual 20 | . 20 . Terminals 26 | . 26 . Fabricators . | . . . Repair Stations . | . . . Recycling Units . | . . . Scanalyzers . | . . . Garrison Access . | . . . Terminal Hacks 9 | . 8 1 Part Schematic 3 | . 3 . Robot Analysis 1 | . 1 . Prototype ID Bank 1 | . 1 . Open Door 1 | . . 1 Unreport Threat 1 | . 1 . Hauler Manifests 2 | . 2 . Fabricator Hacks . | . . . Repair Station Hacks . | . . . Recycling Unit Hacks . | . . . Scanalyzer . | . . . Garrison Access Hacks . | . . . Unauthorized Hacks 10 | . 10 . Terminals 10 | . 10 . Botnet 5 | . 5 . Skim 5 | . 5 . Fabricators . | . . . Repair Stations . | . . . Recycling Units . | . . . Scanalyzers . | . . . Garrison Access . | . . . Data Cores Recovered 2 | . 2 . Used 1 | . 1 . Hacking Detections 7 | . 7 . Full Trace Events 1 | . 1 . Feedback Events 1 | . 1 . Corruption 1 | . 1 . Feedback Blocked . | . . . Robot Schematics Acquired . | . . . Robots Built . | . . . Authchips . | . . . Time . | . . . Total Robot Build Rating . | . . . Part Schematics Acquired 3 | . 3 . Parts Built . | . . . Authchips . | . . . Time . | . . . Total Part Build Rating . | . . . Part Studies Acquired . | . . . Parts Repaired . | . . . Time . | . . . Parts Recycled . | . . . Recycled Matter . | . . . Retrieved Matter . | . . . Retrieved Components . | . . . Parts Scanalyzed . | . . . Part Schematics Acquired . | . . . Parts Damaged . | . . . Bothacking | -11 -10 -10 ------------ Run | Yrd Mat Min Used RIF Installer . | . . . Robots Hacked . | . . . Non-combat . | . . . Combat . | . . . Robot Hacks Applied . | . . . Relay Couplers Released . | . . . Fabnet Peak Effective % . | . . . Robots Rewired . | . . . Allies Hacked . | . . . Hacks Repelled . | . . . Allies | -11 -10 -10 -------- Run | Yrd Mat Min Total Allies . | . . . Largest Group . | . . . Highest-Rated Group . | . . . Highest-Rated Ally . | . . . Total Orders . | . . . Ally Attacks . | . . . Total Damage . | . . . Kills . | . . . Allies Corrupted . | . . . Allies Melted . | . . . Intel | -11 -10 -10 ------- Run | Yrd Mat Min Active Infowar (turns) 801 | 6 625 170 Sensors 170 | . . 170 Seismic 631 | 6 625 . Robot Analysis Total 1 | . 1 . Derelict Logs Recovered 1 | . . 1 Drone Launches . | . . . Drone Recoveries . | . . . Exploration | -11 -10 -10 ------------- Run | Yrd Mat Min Turns Passed 2616 | 176 1739 701 Spaces Moved 1083 | 86 756 241 Core 3 | 2 . 1 Treads 971 | 78 756 137 Legs 8 | . . 8 Wheels 101 | 6 . 95 Hover . | . . . Flight . | . . . Fastest Speed 50 | 50 160 100 Average Speed 173 | 152 167 199 Slowest Speed 800 | 160 240 800 Overloaded Moves . | . . . Propulsion Burnouts . | . . . Robots Hopped . | . . . Potential Cave-ins . | . . . Cave-ins Triggered . | . . . Exploration Rate (%) 50 | 6 97 47 Regions Visited 2 Branch Regions 1 Pre-discovered Areas 1 | . . 1 Known Exits Taken . | . . . Unknown Exits Taken 2 | 1 1 . Scrap Searched 1 | . . 1 Spaces Dug 13 | . 10 3 Terrain Destroyed 13 | . 10 3 Melee 3 | . . 3 Projectile 10 | . 10 . AOE . | . . . Terrain Rammed . | . . . Walls Destroyed . | . . . Machines Disabled . | . . . Actions | -11 -10 -10 --------- Run | Yrd Mat Min Total 1631 | 121 1118 392 Wait 322 | 4 254 64 Move 1081 | 85 755 241 Hop . | . . . Pick Up 56 | 15 21 20 Fast Attach 4 | . 1 3 Attach 15 | 7 3 5 Detach . | . . . Swap 32 | 5 20 7 Drop 23 | 1 14 8 Fire 67 | 4 50 13 Melee 31 | . . 31 Ram . | . . . Kick . | . . . Crush . | . . . Escape Stasis . | . . . Rewire . | . . . Trap . | . . . Miscellaneous . | . . . Route ------- -11/Scrapyard -10/Materials (discovered 6 exits: *Mat x3 / *Min x2 / Sub) -10/Mines (discovered 1 exit: *Mat) History --------- Turn | Location | Event 36 | -11/Scrapyard | Discovered new exit (range 15) 177 | -11/Scrapyard | Entered Materials 315 | -10/Materials | Build established: Mutant 695 | -10/Materials | Discovered new exit (range 13) 835 | -10/Materials | Discovered new exit (range 6) 1164 | -10/Materials | Central database locked down 1354 | -10/Materials | Discovered new exit (range 16) 1462 | -10/Materials | Discovered new exit (range 15) 1546 | -10/Materials | Learned 4 Subcaves zone layouts 1599 | -10/Materials | Identified exit to Materials 1644 | -10/Materials | Identified exit to Subcaves 1724 | -10/Materials | Learned 4 Recycling zone layouts 1783 | -10/Materials | Learned Storage trap positions 1829 | -10/Materials | Learned Storage security intel 1916 | -10/Materials | Entered Mines 1927 | -10/Mines | Met a Derelict who couldn't figure out how to use a Trap Extractor 1954 | -10/Mines | Met a Derelict bent on vengeance 2228 | -10/Mines | Learned location of 1 exit from Materials 2341 | -10/Mines | Core integrity fell below 50% 2385 | -10/Mines | Lost 3 parts (2n1w) 2414 | -10/Mines | Core integrity fell below 20% 2559 | -10/Mines | Learned location of Storage (-8) 2617 | -10/Mines | Destroyed by S-10 Pest with Light Assault Rifle Last Messages --------------- 02521_ Acquired Terrain Scan Processor. 02523_ Acquired Seismic Detector. 02526_ Acquired Lgt. Ion Engine. 02528_ Dropped Lgt. Nuclear Core. 02530_ Acquired Imp. Trap Extractor. 02531_ Acquired 26 matter. 02532_ R-06 Scavenger collects Lgt. Nuclear Core. 02535_ Acquired Mining Laser. 02537_ System corrupted: Heat flow error (+268). 02559_ A derelict emerges from the shadows: "Are any of them following you? I'm here trying to lose some heat after our second raid on Storage failed. Whatever you do stay away from that place, they've tightened security following our previous successful raids." World map updated: -8/Storage. 02559_ JU2BID57H1K# JANDP RGUXIRL/LI9U/NGX= 02561_ VL-HJN(g): "We scattered so the Unaware couldn't effectively use their advantage in numbers, and I suggest you do the same." 02561_ VL-HJN(g) slips back into the shadows. 02592_ K-01 Serf collects debris. 02613_ Assault Rifle destroyed. Map ----- +----------------------------------------------------+ | ?????????????????????????## #??????????? | | ???????????????????????????# #??????????? | | ????????????????????????????# ##??????????? | | ??????????????????????? ?????###???????????? | | ??????????????????????? ??????????????????? | | ?????????????????????? ?????????????????? | | ?????????????????????? ????????????????? | | ????????????????????? #####???####???# | | ??????????????????????? #### ##### | | ???????????????????????? ## | | ??????????????????????????????# #### | | ??????????????????????????????# ##??# | | ?????????????????????????????## ##???# | | ????????????????????????????## ##???? | | ????????????????????????????# ##????# | | ????????????????????????????# ##?????# | | ?????????????####???????????# #??????# | | ?????????????# ##??????????## ######## | | ?????????????# #???????????#### #[ ## | | ?????????????## #???????####???# [# """ ### | | ??????????????# ##?????## ###?#* # """ #?? | | ??????????????# ##???## ### # """ #?? | | ??????????????# #??## %## #?? | | ??????????????# #### # #?? | | ??????????????## ## #######?? | | ???????????????# @## ######???????? | | ???????????????# #####????????? | | ???????????????## s #????????? | | ????????????????###### """" #???? | | ?????????????????????# """" #??? | | ????????????????????# """" #?? | | ??????????????????? u ??? | | ?????????????????? ### ??? | | ?????????????????# ## ##??? ??? | | ?????????????????## ######????? ???? | | ??????????????????# #???????????##???? | | ??????????????????# ????????????????? | | ?????????????????? ????????????????? | | ?????????????????? ? ???????????????? | | ??????????????????? ?????????????????? | | ???????????????????## # ??????????????????? | | ?????????????????????##? ??????????????????? | | ????????????????????????%??????????????????? | | ???????????????????????????????????????????? | | ???????????????????????????????????????????? | | ???????????????????????????????????????????? | | ???????????????????????????????????????????? | | ???????????????????????????????????????????? | | ???????????????????????????????????????????? | | ???????????????????????????????????????????? | +----------------------------------------------------+ Best States ------------- Heat Dissipation 25 Energy Generation 14 Energy Capacity 250 Matter Stores 300 Matter Capacity 300 Sight Range 16 Robot Scan Range 14 Terrain Scan Density 10 Armor Coverage 150 Power Shielding 66 Evasion (%) 45 Recoil Reduction 2 Offensive Hacking 10 Trap Extractor Capacity 6 Item Schematics ----------------- Lrg. Storage Unit | -10/Materials | Hacked Hover Unit | -10/Materials | Hacked Sensor Array | -10/Materials | Hacked Robot Schematics ------------------ None Fabricated ------------ Nothing Repaired ---------- Nothing Studied --------- None Alien Tech Used ----------------- None Achievements -------------- None Challenges ------------ None Game ------ Seed ShadeMediumSubcomponent Manual? 0 Play Time 00:37:07 Cumulative 66.8 hours Start 2025.12.06 @ 20:16:04 End 2025.12.06 @ 21:17:53 Sessions 1 Manual Loads 0 Difficulty Rogue Special Mode None Game No. 36 Rogue 36 Adventurer 0 Explorer 0 Win Type - Total 0 Types 0/0/0/0/0/0/0/0/0/0 Lore% 19 Gallery% 36 Achievement% 25 Wizard Run 0 Options --------- Layout 0 ASCII 0 Keyboard 0 Movement Mouse Keybinds 1 Fullscreen 2 Font 24/Smallcaps Map View 76x50 Zoom Use 0% Tactical HUD 1 Map Filters NONE Filters NONE Steam 1 RUN: 38974223-fc27-40b6-9965-257434449876